Cogmind - Beta 9.4 @@@ ROGUE MODE // 2020.01.22 @ 11:28:05 Player: Cookie Result: Self-destructed Performance ------------- Evolutions (3) 1500 Regions Visited (5) 1000 Robots Destroyed (16) 80 Value Destroyed (431) 431 Prototype IDs (2) 40 Alien Tech Used (0) 0 Bonus (-15) -15 TOTAL SCORE: 3036 Bonus ------- Follower Combat Kills 25 Friendly Fire -40 Cogmind --------- Core Integrity 612/700 Matter 236/300 Energy 350/350 System Corruption 4% Temperature Cool (0) Movement Hovering (48) Location -7/Factory Parts ------- > --- POWER (2) -------- Light Nuclear Core Improved Deuterium Engine > --- PROPULSION (4) --- Hover Unit Airjet Airjet Airjet > --- UTILITY (5) ------ Medium Storage Unit Signal Interpreter Hacking Suite System Shield > --- WEAPON (2) ------- Assault Rifle Flak Cannon > --- INVENTORY (8) ---- Improved Deuterium Engine Improved Heat Sink Gatling Laser Flak Cannon Peak State ------------ > --- POWER ------------ Light Nuclear Core Improved Deuterium Engine > --- PROPULSION ------- Hover Unit Airjet Airjet Airjet > --- UTILITY ---------- Medium Storage Unit Signal Interpreter Hacking Suite System Shield > --- WEAPON ----------- Assault Rifle Flak Cannon > --- INVENTORY -------- Improved Heat Sink Gatling Laser Flak Cannon [Rating: 30] Favorites ----------- Power Light Ion Engine Engine Light Ion Engine Power Core Light Nuclear Core Propulsion Airjet Wheel Wheel Hover Unit Airjet Flight Unit Flight Unit Utility Medium Storage Unit Storage Medium Storage Unit Processor Signal Interpreter Hackware Hacking Suite Weapon EM Pulse Gun Energy Gun EM Pulse Gun Ballistic Gun Light Assault Rifle Ballistic Cannon Flak Cannon Build | -11 -10 -10 -9 -8 -7 ------- Run | Scr Mat Min Mat Mat Fac Slots Evolved 6 | . . . 2 2 2 Power 1 | . . . . 1 . Propulsion 2 | . . . 1 . 1 Utility 3 | . . . 1 1 1 Weapon . | . . . . . . Parts Attached 30 | 6 3 3 7 2 9 Power 5 | 1 . 1 . 1 2 Engine 4 | 1 . 1 . 1 1 Core 1 | . . . . . 1 Reactor . | . . . . . . Propulsion 14 | 2 1 1 4 . 6 Treads . | . . . . . . Leg . | . . . . . . Wheel 3 | 2 1 . . . . Hover 10 | . . . 4 . 6 Flight 1 | . . 1 . . . Utility 7 | 1 2 1 2 1 . Device . | . . . . . . Storage 2 | 1 1 . . . . Processor 3 | . 1 . 2 . . Hackware 2 | . . 1 . 1 . Protection . | . . . . . . Artifact . | . . . . . . Weapon 4 | 2 . . 1 . 1 Energy Gun 1 | 1 . . . . . Energy Cannon . | . . . . . . Ballistic Gun 2 | 1 . . . . 1 Ballistic Cannon 1 | . . . 1 . . Launcher . | . . . . . . Special Weapon . | . . . . . . Impact Weapon . | . . . . . . Slashing Weapon . | . . . . . . Piercing Weapon . | . . . . . . Special Melee Weapon . | . . . . . . Unidentified Prototypes . | . . . . . . Parts Lost 6 | . . . . . 6 Power 2 | . . . . . 2 Propulsion 4 | . . . . . 4 Utility . | . . . . . . Weapon . | . . . . . . Highest Loss Streak 3 | . . . . . 3 Average Slot Usage (%) 95 | . 94 98 96 100 91 Engine 14 | . 14 14 11 18 13 Wheel 4 | . 28 26 . . . Hover 24 | . . . 31 27 29 Storage 9 | . 17 14 11 9 7 Processor 8 | . 5 10 9 9 7 Hackware 13 | . . 3 11 18 15 Energy Gun 8 | . 14 14 11 9 5 Ballistic Gun 2 | . 14 14 . . 1 Ballistic Cannon 6 | . . . 10 9 7 Naked Turns . | . . . . . . Heaviest Build 31 | 12 20 16 19 22 31 Greatest Support 33 | 26 26 20 27 24 33 Greatest Overweight (x) 4 | . . 1 4 . 1 Average Overweight (x) . | . . . . . . Largest Inventory Capacity 10 | 6 10 8 8 8 8 Average Capacity 7 | 5 7 8 8 8 8 Most Carried 8 | 4 5 8 8 7 8 Average Carried 6 | 1 3 6 6 6 7 Final Capacity 8 | 6 8 8 8 8 8 Final Carried 8 | 1 5 8 8 7 4 Class Distribution -------------------- 43% | Hacker-Mutant 28% | Scavenger-Mutant 28% | Mutant Dominant Class ---------------- Mutant | -10/Materials Mutant | -10/Mines Mutant | -9/Materials Hacker-Mutant | -8/Materials Scavenger-Mutant | -7/Factory Resources | -11 -10 -10 -9 -8 -7 ----------- Run | Scr Mat Min Mat Mat Fac Matter Collected 672 | 211 30 99 102 43 187 Remotely . | . . . . . . Salvage Created 577 | . 48 246 53 43 187 Parts 42 | . 6 14 6 3 13 Haulers Intercepted . | . . . . . . Recyclers Shooed . | . . . . . . Parts Field Recycled . | . . . . . . Retrieved Matter . | . . . . . . Parts Self-Destructed . | . . . . . . Prevented . | . . . . . . Kills | -11 -10 -10 -9 -8 -7 ------- Run | Scr Mat Min Mat Mat Fac Combat Hostiles Destroyed 9 | . . 4 1 1 3 Guns 5 | . . 4 1 . . Cannons 4 | . . . . 1 3 Classes Destroyed 8 | . 1 2 2 1 2 Worker 2 | . 2 . . . . Recycler 2 | . . 1 . . 1 Operator 1 | . . . . . 1 Watcher 2 | . . . 2 . . Swarmer 1 | . . . 1 . . Grunt 4 | . . 4 . . . Sentry 3 | . . . . 1 2 Programmer 1 | . . . . . 1 Best Kill Streak 5 | . 1 5 2 1 1 Combat Bots Only 4 | . . 4 1 1 1 Max Kills in Single Turn 1 | . 1 1 1 1 1 Gunslinging . | . . . . . . Exploded . | . . . . . . Melee . | . . . . . . Uniques/NPCs Destroyed . | . . . . . . Combat | -11 -10 -10 -9 -8 -7 -------- Run | Scr Mat Min Mat Mat Fac Damage Taken 817 | . . 190 83 48 496 Core 193 | . . 85 6 14 88 Absorbed by Shields . | . . . . . . Core Remaining (%) 90 | 100 . 66 98 97 . Volleys Fired 55 | . 3 17 9 3 23 Largest 2 | . 2 2 2 2 2 Hottest 84 | . 60 60 84 84 84 Shots Fired 109 | . 6 34 18 6 45 Gun 74 | . 6 34 9 3 22 Cannon 35 | . . . 9 3 23 Launcher . | . . . . . . Special . | . . . . . . Kinetic 62 | . 3 17 9 3 30 Thermal . | . . . . . . Explosive . | . . . . . . Electromagnetic 47 | . 3 17 9 3 15 Robot Hit Streak 11 | . 2 10 5 6 11 Robot Miss Streak 11 | . 1 4 11 3 8 Penetration Max . | . . . . . . Secondary Targets . | . . . . . . Shots Hit Robots 78 | . 3 22 9 5 39 Core Hits 48 | . 2 13 6 3 24 Critical Hits . | . . . . . . Critical Kills . | . . . . . . Critical Parts Destroyed . | . . . . . . Melee Attacks . | . . . . . . Impact . | . . . . . . Slashing . | . . . . . . Piercing . | . . . . . . Sneak Attacks . | . . . . . . Combat Hostiles . | . . . . . . Follow-up Attacks . | . . . . . . Damage Inflicted 1198 | . 28 270 167 98 635 Guns 519 | . 28 246 58 23 164 Cannons 620 | . . . 74 75 471 Explosions 59 | . . 24 35 . . Melee . | . . . . . . Ramming . | . . . . . . Kinetic 787 | . . 82 74 75 556 Thermal 59 | . . 24 35 . . Explosive . | . . . . . . Electromagnetic 352 | . 28 164 58 23 79 Impact . | . . . . . . Slashing . | . . . . . . Piercing . | . . . . . . Highest Corruption 4 | . . . . . 4 Average Corruption 3 | . . . . . 3 Corruption Purged . | . . . . . . Effects 9 | . . . . . 9 Message Errors 2 | . . . . . 2 Matter Fused 2 | . . . . . 2 Heat Flow Errors 1 | . . . . . 1 Data Loss (minor) 2 | . . . . . 2 Targeting Errors 1 | . . . . . 1 Weapon Failures 1 | . . . . . 1 Overload Shots . | . . . . . . Overflow Damage . | . . . . . . Projectiles . | . . . . . . Explosions . | . . . . . . Melee . | . . . . . . Knockbacks 19 | . . . 10 . 9 Impact . | . . . . . . Kinetic 17 | . . . 8 . 9 Secondary 2 | . . . 2 . . Self-Inflicted Damage . | . . . . . . Shots . | . . . . . . Rammed . | . . . . . . Targets Rammed . | . . . . . . Kicked . | . . . . . . Crushed . | . . . . . . Highest Temperature 215 | . 20 173 144 117 215 Average Temperature 62 | . 15 91 56 68 53 Received Heat Transfer 216 | . . 93 24 27 72 Siege Activations . | . . . . . . Robots Corrupted . | . . . . . . Combat Hostiles . | . . . . . . Parts Fried . | . . . . . . Impact Corruptions . | . . . . . . Robots Melted . | . . . . . . Combat Hostiles . | . . . . . . Parts Melted . | . . . . . . Heat Transferred 100 | . . 50 50 . . Parts Sabotaged . | . . . . . . Parts Stolen . | . . . . . . Parts Stripped . | . . . . . . Power Chain Reactions 2 | . . 1 1 . . Missiles Intercepted . | . . . . . . Alert | -11 -10 -10 -9 -8 -7 ------- Run | Scr Mat Min Mat Mat Fac Peak Influence 119 | . 28 116 108 69 119 Average Influence 36 | . 8 52 67 30 32 Maximum Alert Level . | . . . . . . Low Security (%) 100 | 100 100 100 100 100 100 Level 1 . | . . . . . . Level 2 . | . . . . . . Level 3 . | . . . . . . Level 4 . | . . . . . . Level 5 . | . . . . . . High Security . | . . . . . . Max Security . | . . . . . . Squads Dispatched 6 | . . 1 1 1 3 Investigation 2 | . . . 1 . 1 Extermination 1 | . . . . . 1 Reinforcement 2 | . . . . 1 1 Assault 1 | . . 1 . . . Garrison . | . . . . . . Intercept . | . . . . . . Construction Impeded . | . . . . . . Haulers Reinforced . | . . . . . . Stealth | -11 -10 -10 -9 -8 -7 --------- Run | Scr Mat Min Mat Mat Fac Distress Signals 3 | . . . . 2 1 Communications Jammed . | . . . . . . Distress Signals . | . . . . . . Times Spotted 41 | . 4 11 9 7 10 Peak Tracking Total 6 | . 3 5 3 6 3 Tactical Retreats 6 | . 2 1 1 . 2 Traps | -11 -10 -10 -9 -8 -7 ------- Run | Scr Mat Min Mat Mat Fac Traps Triggered 3 | . . 1 1 . 1 Indirectly . | . . . . . . Trap Hack Attempts . | . . . . . . Triggered . | . . . . . . Disarmed . | . . . . . . Reprogrammed . | . . . . . . Reused . | . . . . . . Traps Extracted . | . . . . . . Installed . | . . . . . . Triggered . | . . . . . . Machines | -11 -10 -10 -9 -8 -7 ---------- Run | Scr Mat Min Mat Mat Fac Machines Disabled . | . . . . . . Max in Single Turn . | . . . . . . Machines Sabotaged . | . . . . . . Garrisons Compromised . | . . . . . . Overloaded Fab Kills . | . . . . . . Fab Network Shutdowns . | . . . . . . Hacking | -11 -10 -10 -9 -8 -7 --------- Run | Scr Mat Min Mat Mat Fac Machines Accessed 13 | . 2 1 . 3 7 Terminals 9 | . 2 . . 3 4 Fabricators 1 | . . . . . 1 Repair Stations 1 | . . . . . 1 Recycling Units . | . . . . . . Scanalyzers 1 | . . . . . 1 Garrison Access . | . . . . . . Total Hacks 38 | . 8 1 . 10 19 Successful 20 | . 6 1 . 6 7 Failed 18 | . 2 . . 4 12 Catastrophic 2 | . . . . . 2 Database Lockouts . | . . . . . . Manual 25 | . 5 . . 10 10 Terminals 28 | . 8 . . 10 10 Fabricators 5 | . . . . . 5 Repair Stations 1 | . . . . . 1 Recycling Units . | . . . . . . Scanalyzers 3 | . . . . . 3 Garrison Access . | . . . . . . Terminal Hacks 8 | . 3 1 . 3 1 Prototype ID Bank 1 | . 1 . . . . Open Door 1 | . . 1 . . . Terminal Index 2 | . 1 . . 1 . Repair Station Index 1 | . . . . 1 . Locate Traps 1 | . 1 . . . . Recall Investigation 1 | . . . . . 1 Zone Layout 1 | . . . . 1 . Fabricator Hacks 1 | . . . . . 1 Load Schematic 1 | . . . . . 1 Repair Station Hacks . | . . . . . . Recycling Unit Hacks . | . . . . . . Scanalyzer 2 | . . . . . 2 Insert Component 1 | . . . . . 1 Analyze 1 | . . . . . 1 Garrison Access Hacks . | . . . . . . Unauthorized Hacks 24 | . 7 . . 7 10 Terminals 9 | . 3 . . 3 3 Assimilate 1 | . . . . . 1 Botnet 6 | . 2 . . 2 2 Operators 2 | . 1 . . 1 . Fabricators . | . . . . . . Repair Stations . | . . . . . . Recycling Units . | . . . . . . Scanalyzers . | . . . . . . Garrison Access . | . . . . . . Data Cores Recovered . | . . . . . . Used . | . . . . . . Hacking Detections 11 | . 2 . . 3 6 Full Trace Events . | . . . . . . Feedback Events . | . . . . . . Feedback Blocked . | . . . . . . Robot Schematics Acquired . | . . . . . . Robots Built . | . . . . . . Matter . | . . . . . . Time . | . . . . . . Total Robot Build Rating . | . . . . . . Part Schematics Acquired 1 | . . . . . 1 Parts Built . | . . . . . . Matter . | . . . . . . Time . | . . . . . . Total Part Build Rating . | . . . . . . Parts Repaired . | . . . . . . Time . | . . . . . . Parts Recycled . | . . . . . . Recycled Matter . | . . . . . . Retrieved Matter . | . . . . . . Retrieved Components . | . . . . . . Parts Scanalyzed 1 | . . . . . 1 Part Schematics Acquired 1 | . . . . . 1 Parts Damaged . | . . . . . . Bothacking | -11 -10 -10 -9 -8 -7 ------------ Run | Scr Mat Min Mat Mat Fac Used RIF Installer . | . . . . . . Robots Hacked . | . . . . . . Non-combat . | . . . . . . Combat . | . . . . . . Robot Hacks Applied . | . . . . . . Relay Couplers Released . | . . . . . . Robots Rewired . | . . . . . . Allies Hacked . | . . . . . . Hacks Repelled . | . . . . . . Allies | -11 -10 -10 -9 -8 -7 -------- Run | Scr Mat Min Mat Mat Fac Total Allies 2 | . . 1 . . 1 Largest Group 1 | . . 1 . . 1 Highest-Rated Group 31 | . . 31 . . 10 Highest-Rated Ally 31 | . . 31 . . 10 Total Orders . | . . . . . . Ally Attacks 6 | . . 6 . . . Total Damage 84 | . . 84 . . . Kills 1 | . . 1 . . . Allies Corrupted . | . . . . . . Allies Melted 1 | . . 1 . . . Intel | -11 -10 -10 -9 -8 -7 ------- Run | Scr Mat Min Mat Mat Fac Robot Analysis Total . | . . . . . . Derelict Logs Recovered 2 | . . 2 . . . Drone Launches . | . . . . . . Drone Recoveries . | . . . . . . Exploration | -11 -10 -10 -9 -8 -7 ------------- Run | Scr Mat Min Mat Mat Fac Turns Passed 2877 | 41 176 277 338 891 1154 Spaces Moved 1409 | 37 192 256 186 176 562 Core 15 | 11 . . 4 . . Treads . | . . . . . . Legs . | . . . . . . Wheels 477 | 26 192 256 3 . . Hover 917 | . . . 179 176 562 Flight . | . . . . . . Fastest Speed 48 | 50 80 80 52 52 48 Average Speed 62 | 78 81 81 56 52 50 Slowest Speed 250 | 90 90 90 250 52 116 Overloaded Moves . | . . . . . . Propulsion Burnouts . | . . . . . . Robots Hopped . | . . . . . . Cave-ins Triggered . | . . . . . . Exploration Rate (%) 24 | 3 33 53 24 20 12 Regions Visited 5 Branch Regions 1 Pre-discovered Areas 1 | . . 1 . . . Known Exits Taken 4 | . 1 1 1 1 . Unknown Exits Taken 1 | 1 . . . . . Scrap Searched 2 | . . 2 . . . Spaces Dug . | . . . . . . Terrain Destroyed 8 | . . 5 3 . . Melee . | . . . . . . Projectile . | . . . . . . AOE 8 | . . 5 3 . . Actions | -11 -10 -10 -9 -8 -7 --------- Run | Scr Mat Min Mat Mat Fac Total 3309 | 49 206 297 403 968 1386 Wait 1761 | . 1 5 182 787 786 Move 1404 | 36 191 255 185 175 562 Hop . | . . . . . . Pick Up 39 | 7 6 9 11 1 5 Fast Attach 2 | . . 2 . . . Attach 25 | 6 2 1 6 2 8 Detach 1 | . 1 . . . . Swap 3 | . 1 . 1 . 1 Drop 19 | . 1 8 9 . 1 Fire 55 | . 3 17 9 3 23 Melee . | . . . . . . Ram . | . . . . . . Kick . | . . . . . . Crush . | . . . . . . Escape Stasis . | . . . . . . Rewire . | . . . . . . Trap . | . . . . . . Miscellaneous . | . . . . . . Route ------- -11/Scrapyard -10/Materials (discovered 2 exits: *Mat / *Min) -10/Mines -9/Materials (discovered 2 exits: *Mat x2) -8/Materials -7/Factory History --------- Turn | Location | Event 14 | -11/Scrapyard | Discovered new exit (range 16) 42 | -11/Scrapyard | Entered Materials 167 | -10/Materials | Discovered new exit (range 3) 169 | -10/Materials | Identified exit to Materials 195 | -10/Materials | Discovered new exit (range 15) 206 | -10/Materials | Identified exit to Mines 218 | -10/Materials | Entered Mines 238 | -10/Mines | Learned 2 Materials zone layouts 297 | -10/Mines | Met a Derelict testing a Signal Generator 318 | -10/Mines | Build established: Mutant 427 | -10/Mines | Met a Derelict who couldn't figure out how to use a Trap Extractor 458 | -10/Mines | Discovered exit to Materials (range 16) 469 | -10/Mines | Learned location of Storage (-9) 495 | -10/Mines | Entered Materials 495 | -9/Materials | Evolved 2 slots: Propulsion x1, Utility x1 496 | -9/Materials | Identified exit to Materials 822 | -9/Materials | Discovered exit to Materials (range 15) 833 | -9/Materials | Entered another Materials area 833 | -8/Materials | Evolved 2 slots: Power x1, Utility x1 1121 | -8/Materials | Build established: Hacker-Mutant 1705 | -8/Materials | Discovered new exit (range 10) 1723 | -8/Materials | Identified exit to Factory 1724 | -8/Materials | Entered Factory 1724 | -7/Factory | Evolved 2 slots: Propulsion x1, Utility x1 2100 | -7/Factory | Build established: Scavenger-Mutant 2650 | -7/Factory | Lost 3 parts (1p2n) 2769 | -7/Factory | Lost 3 parts (1p2n) 2878 | -7/Factory | Self-destructed Last Messages --------------- 02753_ R-06 Scavenger collects Lgt. Treads. 02760_ Y-54 Guardian destroyed. 02762_ 0%BUB2O=>V0ZCUYOQB=DBTT 02764_ Acquired Imp. Deuterium Engine. 02765_ Acquired 46 matter. 02775_ K-01 Serf cleans the Terminal. 02776_ Connecting with Terminal... 02783_ 9YY5S8N G7UE2U=8JCMLVBI:4QV//QWJ<:ZW>S2M 02785_ Connecting with Terminal... >>Trojan(Botnet) Trojan loaded successfully. Testing... Terminal linked with 1 system. Awaiting botnet instructions. 02803_ K-01 Serf cleans the Terminal. 02805_ System corrupted: Matter fused (-8). 02806_ K-01 Serf cleans the Terminal. 02844_ K-01 Serf cleans the Nuclear Reactor. 02853_ W-25 Informer knocked back. 02867_ K-01 Serf cleans the Power Conduit. Map ----- +----------------------------------------------------+ | ????? ?????????#/!! #??# | | ????? ?????????#/!! !##?# | | ????# ?????????# #?# | | ???? #????????##+########?# ################# | | ????# #?????????# #????????#######?????????# | | ????# #?????????# #????????????????????????# """ | | ????# #?????????# #????????????????????????# """ | | ????# #?????????# #????????????????????????# """ | | ????# #?????????# #????????????????????????# | | ????# #?????????# #????????????????????????# | | ????# ########### #????????????????????????# | | ????# #????????????????????????# ! | | ????# ########### #????????????????????????####### | | ????# #?????????# #??????????????????????????????? | | ????# #?????????# #????####??????????????????????? | | ????# #?????????# #????+ ??????????????????????? | | ????# #?????????# #????# ??????????????????????? | | ????# #?????????+ +????# ??????????????????????? | | ????# #?????????# #????# ??????????????????????? | | #####+########### #????# #??????????????????????? | | ! / +????# #??????????????????????? | | #???# ###### #??????????????????????? | | """ """ #???# #?????????????????????/! | | """ """ #???? +??????????????????? /! | | """ """ #???# """"" #??????????????????# /! | | #???# """"" @#??????????????????# | | """ """ #???# """ #??????????????????##### | | """ """ #???# #??????????????????????? | | """ """ #???# """"" #??????????????????????? | | #???# """"" #??????????????????????? | | #???# """ #??????????????????????? | | #???# # #??????????????????? | | ##########+##???# r +??????????????????? | | ?????????# #????#######+### #??????????????????? | | ?????????# #????# ## ##??????????????????? | | ?????????# #????# #? #???????????????????? | | ?????????# #????# #??#???????????????????? | | ?????????# #????# #??????????????????????? | | ??????#### ########+#######??????????????????????? | | ??????+ #???????????????????? | | ??????####+#####+##########??????????????????????? | | ??????# #?????????????????????????????? | | ??????# """"""""" #?????????????????????????????? | | ??????# #?????????????????????????????? | | ??????# """"""""" #?????????????????????????????? | | ??????# #?????????????????????????????? | | ??????# """"""""" #?????????????????????????????? | | ??????+ #?????????????????????????????? | | ??????# """"""""" #?????????????????????????????? | | ??????#??? #?????????????????????????????? | +----------------------------------------------------+ Best States ------------- Heat Dissipation 34 Energy Generation 25 Energy Capacity 350 Matter Stores 300 Matter Capacity 300 Sight Range 16 Terrain Scan Density 10 Evasion (%) 55 Offensive Hacking 10 Defensive Hacking 10 Item Schematics ----------------- Airjet | -7/Factory | Scanalyzed Robot Schematics ------------------ None Fabricated ------------ Nothing Alien Tech Used ----------------- None Achievements -------------- None Challenges ------------ None Game ------ Seed HackingSubatomicBox Manual? 0 Play Time 00:32:43 Cumulative 52.3 hours Start 2020.01.22 @ 10:50:31 End 2020.01.22 @ 11:28:05 Sessions 1 Manual Loads 0 Difficulty Rogue Special Mode None Game No. 78 Rogue 78 Adventurer 0 Explorer 0 Win Type - Total 1 Types 1/0/0/0/0/0/0 Lore% 41 Gallery% 37 Achievement% 35 Wizard Run 0 Options --------- ASCII 0 Keyboard 0 Movement Mouse Keybinds 0 Fullscreen 1 Font 18/SmallcapsGlow Map View 76x50 Tactical HUD 1 Map Filters NONE Filters NONE Steam 1 RUN: 25be1d01-d15f-4fc5-94ed-804bd7a5488f